[Event "Gibraltar Challengers A 2019"]
[Site "Caleta"]
[Date "2019.01.22"]
[Round "2"]
[White "Jordan Martinez, Miguel"]
[Black "Janse, Jan Jaap"]
[Result "1/2-1/2"]
[ECO "B18"]
[WhiteElo "2142"]
[BlackElo "2222"]
[Annotator "NA"]
[PlyCount "125"]
[EventDate "2019.01.18"]
[EventType "swiss"]
[EventCountry "GGB"]
[SourceTitle "playchess.com"]
[Source "ChessBase"]
[SourceQuality "1"]
[TimeControl "6600+10"]

1. e4 {[%emt 0:00:00]} c6 {[%emt 0:00:09]} 2. d4 {[%emt 0:00:00]} d5 {[%emt 0:00:06]} 3. Nd2 {[%emt 0:00:45]} dxe4 {[%emt 0:00:08]} 4. Nxe4 {[%emt 0:00:04]} Bf5 {[%emt 0:00:07]} 5. Ng3 {[%emt 0:00:06]} Bg6 {[%emt 0:00:10]} 6. Nh3 {[%emt 0:00:06]} e6 {[%emt 0:01:02]} 7. Nf4 {[%emt 0:00:46]} Bd6 {[%emt 0:01:19]} 8. c3 {[%emt 0:01:14]} Nf6 {[%emt 0:09:07] LiveBook: 141 Games} 9. h4 {[%emt 0:03:40] B18: Classical Caro-Kann: 4...Bf5 sidelines} Bxf4 {[%emt 0:00:10]} 10. Bxf4 {[%emt 0:00:15]} h6 {[%emt 0:00:05]} 11. Be2 {[%emt 0:10:48]} (11. a4 O-O 12. a5 Nd5 13. Bd2 Nd7 14. c4 N5f6 15. h5 Bh7 16. Bc3 c5 {1-0 (68) Ivanchuk,V (2726)-Artemiev,V (2691) Huaian 2017}) 11... Nd5 {[%emt 0:14:57]} 12. Bd2 {[%emt 0:04:48]} Qc7 $146 {[%emt 0:05:57]} ({Predecessor:} 12... Nd7 13. h5 Bh7 14. c4 N5f6 15. O-O Qc7 16. Qc1 O-O {½-½ (45) Salgado Lopez,I (2615)-Korneev,O (2569) Linares 2015}) 13. h5 {[%emt 0:08:21]} Bh7 {[%emt 0:04:18]} 14. O-O {[%emt 0:00:19]} Nf4 {[%emt 0:06:04]} 15. Bc4 {[%emt 0:05:23]} Nd7 {[%emt 0:00:47]} 16. Qg4 {[%emt 0:01:31]} g5 {[%emt 0:05:09]} 17. hxg6 {[%emt 0:02:53]} Nxg6 {[%emt 0:00:10]} 18. Bxe6 {[%emt 0:06:38]} fxe6 {[%emt 0:08:35]} 19. Qxe6+ {[%emt 0:00:13]} Kd8 {[%emt 0:04:46]} 20. Bxh6 {[%emt 0:02:33]} Qa5 {[%emt 0:02:20]} 21. c4 {[%emt 0:17:59]} Kc7 {[%emt 0:07:50]} 22. b4 {[%emt 0:12:59]} Qxb4 {[%emt 0:00:30]} 23. c5 {[%emt 0:01:55]} Rae8 {[%emt 0:07:16]} 24. Qd6+ {[%emt 0:00:18]} Kc8 {[%emt 0:00:19]} 25. Rab1 {[%emt 0:02:59]} Qa4 {[%emt 0:00:49]} 26. Nf5 {[%emt 0:04:07]} Nge5 {[%emt 0:05:04]} 27. Ng7 {[%emt 0:07:53]} Nf7 {[%emt 0:05:06]} 28. Nxe8 {[%emt 0:01:55]} Rxe8 {[%emt 0:06:46]} 29. Qf4 {[%emt 0:00:06]} Nxh6 {[%emt 0:03:01]} 30. Rbe1 {[%emt 0:00:11]} Rf8 {[%emt 0:01:14]} 31. Qxh6 {[%emt 0:00:23]} Bd3 {[%emt 0:01:25]} 32. Re7 {[%emt 0:01:52]} Bxf1 {[%emt 0:02:15]} 33. Rxd7 {[%emt 0:00:15]} Re8 {[%emt 0:00:43]} 34. Qd6 {[%emt 0:01:12]} Qa5 {[%emt 0:00:11]} 35. Rf7 {[%emt 0:01:45]} Rd8 {[%emt 0:02:07]} 36. Qe6+ {[%emt 0:00:07]} Kb8 {[%emt 0:00:06]} 37. Qe5+ {[%emt 0:03:34]} Ka8 $14 {[%emt 0:00:31]} 38. Kxf1 {[%emt 0:00:59]} Qxa2 {[%emt 0:00:16]} 39. Re7 {[%emt 0:00:40]} Qb1+ {[%emt 0:00:25]} 40. Ke2 {[%emt 0:00:36]} Qc2+ {[%emt 0:00:17]} 41. Kf1 {[%emt 0:00:45]} Qd1+ {[%emt 0:01:43]} 42. Qe1 {[%emt 0:00:02]} Qd3+ {[%emt 0:00:25]} 43. Kg1 {[%emt 0:00:44]} Rxd4 {[%emt 0:01:08]} 44. Re8+ {[%emt 0:01:30]} Rd8 {[%emt 0:00:03]} 45. g4 {[%emt 0:00:40]} b5 {[%emt 0:01:33]} 46. cxb6 {[%emt 0:01:10]} axb6 {[%emt 0:00:03]} 47. Re7 {[%emt 0:00:13]} Qd4 {[%emt 0:00:43]} 48. Qe6 {[%emt 0:00:25]} Qd1+ {[%emt 0:00:28]} 49. Kg2 {[%emt 0:00:01]} Qd5+ {[%emt 0:00:05]} 50. Qxd5 {[%emt 0:00:05]} cxd5 {[%emt 0:00:01]} 51. Kf3 {[%emt 0:00:20]} d4 {[%emt 0:00:05]} 52. Ke2 {[%emt 0:00:00]} d3+ {[%emt 0:00:22]} 53. Kd2 {[%emt 0:00:01]} Rd4 {[%emt 0:00:00]} 54. f3 {[%emt 0:00:04]} b5 {[%emt 0:00:01]} 55. Re3 {[%emt 0:00:01]} Kb7 {[%emt 0:00:06]} 56. Rxd3 {[%emt 0:00:03]} Ra4 {[%emt 0:00:02]} 57. g5 {[%emt 0:00:03]} Kc6 {[%emt 0:00:01]} 58. g6 {[%emt 0:00:03]} Ra2+ {[%emt 0:00:02]} 59. Ke3 {[%emt 0:00:35]} Rg2 {[%emt 0:00:01]} 60. f4 {[%emt 0:00:06]} Rxg6 {[%emt 0:00:02]} 61. f5 {[%emt 0:00:00]} Rg3+ {[%emt 0:00:03]} 62. Ke4 {[%emt 0:00:02]} Rxd3 {[%emt 0:00:01]} 63. Kxd3 {[%emt 0:00:06]} 1/2-1/2

[Event "Gibraltar Challengers A 2019"]
[Site "Caleta"]
[Date "2019.01.22"]
[Round "2"]
[White "Ramasindraibe, Girard"]
[Black "Cano Sevilla, Ivan"]
[Result "1-0"]
[ECO "D01"]
[WhiteElo "2129"]
[BlackElo "1950"]
[Annotator "NA"]
[PlyCount "167"]
[EventDate "2019.01.18"]
[EventType "swiss"]
[EventCountry "GGB"]
[SourceTitle "playchess.com"]
[Source "ChessBase"]
[SourceQuality "1"]
[TimeControl "6600+10"]

1. d4 {[%emt 0:00:00]} Nf6 {[%emt 0:02:01]} 2. Nc3 {[%emt 0:00:43]} d5 {[%emt 0:00:09]} 3. Bg5 {[%emt 0:00:24]} Bf5 {[%emt 0:04:23]} 4. Qd2 {[%emt 0:03:56]} c6 {[%emt 0:03:00]} 5. f3 {[%emt 0:00:58]} h6 {[%emt 0:02:38]} 6. Bh4 {[%emt 0:00:29]} g5 {[%emt 0:00:23]} 7. Bf2 {[%emt 0:01:09]} e6 {[%emt 0:01:36]} 8. g4 {[%emt 0:07:09]} Bg6 {[%emt 0:01:49]} 9. h4 {[%emt 0:00:10]} gxh4 {[%emt 0:01:59]} 10. O-O-O {[%emt 0:02:40]} Nbd7 {[%emt 0:00:39]} 11. Bxh4 {[%emt 0:01:52]} Qa5 {[%emt 0:00:22]} 12. e3 {[%emt 0:07:34]} Bb4 {[%emt 0:02:13]} 13. Nge2 {[%emt 0:00:18]} O-O-O {[%emt 0:05:55]} 14. Kb1 {[%emt 0:00:28]} h5 {[%emt 0:05:39]} 15. a3 {[%emt 0:04:57]} Be7 {[%emt 0:04:52]} 16. Nf4 {[%emt 0:03:11]} hxg4 {[%emt 0:03:44]} 17. Ncxd5 {[%emt 0:00:48]} Bxc2+ {[%emt 0:04:00]} 18. Ka1 {[%emt 0:00:55]} Bb4 {[%emt 0:04:04]} 19. Nxb4 {[%emt 0:17:17]} Bxd1 {[%emt 0:00:06]} 20. Qxd1 {[%emt 0:00:02]} Rdg8 {[%emt 0:04:54]} 21. Bg2 {[%emt 0:12:08]} gxf3 {[%emt 0:02:44]} 22. Qxf3 {[%emt 0:01:49]} Rg4 {[%emt 0:07:08]} 23. Bf2 {[%emt 0:12:54]} Rxh1+ {[%emt 0:00:06]} 24. Bxh1 {[%emt 0:00:07]} Qb5 {[%emt 0:03:10]} 25. Qe2 {[%emt 0:01:40]} Qxe2 {[%emt 0:04:03]} 26. Nxe2 {[%emt 0:00:02]} Ne4 {[%emt 0:01:45]} 27. Be1 {[%emt 0:00:15]} Nd6 {[%emt 0:00:11]} 28. Nd3 {[%emt 0:05:39]} Nf6 {[%emt 0:01:53]} 29. Bf3 {[%emt 0:03:50]} Rg7 {[%emt 0:00:38]} 30. Bg3 {[%emt 0:00:13]} Nfe4 {[%emt 0:01:25]} 31. Bf4 {[%emt 0:00:27]} Nd2 {[%emt 0:07:17]} 32. Bxc6 {[%emt 0:01:18]} N6c4 {[%emt 0:00:01]} 33. Bb5 {[%emt 0:01:05]} Na5 {[%emt 0:01:24]} 34. Ndc1 {[%emt 0:02:23]} Rg2 {[%emt 0:01:14]} 35. Bd3 {[%emt 0:01:07]} Ndb3+ {[%emt 0:03:01]} 36. Nxb3 {[%emt 0:01:20]} Nxb3+ {[%emt 0:00:01]} 37. Kb1 {[%emt 0:00:20]} a5 {[%emt 0:00:43]} 38. a4 {[%emt 0:00:20]} Nd2+ {[%emt 0:00:53]} 39. Kc2 {[%emt 0:00:06]} Nf3 {[%emt 0:00:37]} 40. Kc3 {[%emt 0:00:10]} f5 {[%emt 0:02:09]} 41. Bc4 {[%emt 0:02:50]} Kd7 {[%emt 0:00:31]} 42. Bb5+ {[%emt 0:00:02]} Kc8 {[%emt 0:00:22]} 43. Bg3 {[%emt 0:00:46]} Ng5 {[%emt 0:00:20]} 44. Bf4 {[%emt 0:01:24]} Ne4+ {[%emt 0:00:55]} 45. Kb3 {[%emt 0:00:36]} Nd2+ {[%emt 0:01:06]} 46. Ka3 {[%emt 0:02:44]} b6 {[%emt 0:02:23]} 47. Ka2 {[%emt 0:00:00]} Ne4 {[%emt 0:00:13]} 48. Kb3 {[%emt 0:00:00]} Nd2+ {[%emt 0:00:24]} 49. Kc2 {[%emt 0:00:03]} Ne4 {[%emt 0:00:31]} 50. Kd1 {[%emt 0:00:50]} Rg8 {[%emt 0:01:54]} 51. Ke1 {[%emt 0:00:21]} Rh8 {[%emt 0:00:25]} 52. Ng3 {[%emt 0:00:33]} Nf6 {[%emt 0:02:11]} 53. Be5 {[%emt 0:00:09]} Rh6 {[%emt 0:00:01]} 54. Bc6 {[%emt 0:01:48]} Rg6 {[%emt 0:00:42]} 55. Ke2 {[%emt 0:00:31]} Nd7 {[%emt 0:01:08]} 56. Bf4 {[%emt 0:00:30]} Nf6 {[%emt 0:00:35]} 57. Kf3 {[%emt 0:00:13]} Rg8 {[%emt 0:00:49]} 58. Bd6 {[%emt 0:01:25]} Ng4 {[%emt 0:02:08]} 59. Ne2 {[%emt 0:00:36]} Nh6 {[%emt 0:00:54]} 60. Nf4 {[%emt 0:00:21]} Nf7 {[%emt 0:00:12]} 61. Be5 {[%emt 0:01:04]} Ng5+ {[%emt 0:03:21]} 62. Ke2 {[%emt 0:00:04]} Ne4 {[%emt 0:01:00]} 63. Kd3 {[%emt 0:00:21]} Nf2+ {[%emt 0:00:10]} 64. Kc4 {[%emt 0:00:09]} Nd1 {[%emt 0:00:17]} 65. Kb5 {[%emt 0:00:21]} Nxb2 {[%emt 0:00:26]} 66. Nxe6 {[%emt 0:00:09]} Rg6 {[%emt 0:01:10]} 67. Bd5 {[%emt 0:00:08]} Rg1 {[%emt 0:00:33]} 68. Kxb6 {[%emt 0:00:14]} Nxa4+ {[%emt 0:00:05]} 69. Kxa5 {[%emt 0:00:08]} Nc3 {[%emt 0:00:18]} 70. Bc4 {[%emt 0:00:38]} Kb7 {[%emt 0:00:37]} 71. Nc5+ {[%emt 0:00:04]} Kc6 {[%emt 0:00:12]} 72. Nb3 {[%emt 0:00:30]} Rg2 {[%emt 0:00:39]} 73. Bf7 {[%emt 0:00:13]} Nd5 {[%emt 0:00:28]} 74. Be8+ {[%emt 0:00:07]} Kb7 {[%emt 0:00:04]} 75. Nc5+ {[%emt 0:00:03]} Ka7 {[%emt 0:00:20]} 76. e4 {[%emt 0:00:18]} Ra2+ {[%emt 0:00:09]} 77. Kb5 {[%emt 0:00:04]} Nc3+ {[%emt 0:00:09]} 78. Kc6 {[%emt 0:00:11]} fxe4 {[%emt 0:00:14]} 79. Bf7 {[%emt 0:00:06]} Rb2 {[%emt 0:00:14]} 80. d5 {[%emt 0:00:04]} Rb6+ {[%emt 0:00:00]} 81. Kc7 {[%emt 0:00:07]} Nb5+ {[%emt 0:00:08]} 82. Kd7 {[%emt 0:00:11]} e3 {[%emt 0:00:10]} 83. Bh5 {[%emt 0:00:07]} Na3 {[%emt 0:00:20]} 84. Be2 {[%emt 0:00:13]} 1-0

[Event "Gibraltar Challengers A 2019"]
[Site "Caleta"]
[Date "2019.01.22"]
[Round "2"]
[White "Alarcon Olmos, Daniel"]
[Black "Maisuradze, Nino"]
[Result "1/2-1/2"]
[ECO "D04"]
[WhiteElo "2124"]
[BlackElo "2215"]
[Annotator "NA"]
[PlyCount "176"]
[EventDate "2019.01.18"]
[EventType "swiss"]
[EventCountry "GGB"]
[SourceTitle "playchess.com"]
[Source "ChessBase"]
[SourceQuality "1"]
[TimeControl "6600+10"]

1. Nf3 {[%emt 0:02:07]} d5 {[%emt 0:01:25]} 2. d4 {[%emt 0:00:10]} Nf6 {[%emt 0:00:45]} 3. e3 {[%emt 0:00:13]} a6 {[%emt 0:17:21]} 4. Bd3 {[%emt 0:01:14] D04: Colle System} (4. c4 e6 5. b3 c5 6. Bb2 cxd4 7. exd4 Nc6 8. Nbd2 g6 9. Bd3 Bg7 10. O-O O-O 11. Rc1 b6 12. Re1 Bb7 {1-0 (41) Radjabov,T (2738)-Carlsen,M (2850) Berlin 2015}) 4... Bg4 {[%emt 0:03:03]} 5. b3 {[%emt 0:00:54]} Nbd7 {[%emt 0:01:39]} 6. Bb2 {[%emt 0:00:09]} e6 {[%emt 0:03:50]} 7. Nbd2 {[%emt 0:04:05]} c5 $146 {[%emt 0:00:53]} ({Predecessor:} 7... Bd6 8. c4 c6 9. Qc2 Qa5 10. c5 Be7 11. O-O O-O {1-0 (41) Valero Soler,J (1794)-Castaneda Munoz,A (1695) Santa Eulalia de Roncana 2013}) 8. h3 {[%emt 0:04:04]} Bh5 {[%emt 0:00:41]} 9. g4 {[%emt 0:00:46]} Bg6 {[%emt 0:00:15]} 10. Ne5 {[%emt 0:01:27]} Bxd3 {[%emt 0:10:46]} 11. cxd3 {[%emt 0:00:40]} cxd4 {[%emt 0:05:15]} 12. Bxd4 {[%emt 0:20:42]} Nxe5 {[%emt 0:02:23]} 13. Bxe5 {[%emt 0:01:28]} h5 {[%emt 0:20:04]} 14. Rg1 {[%emt 0:16:13]} hxg4 {[%emt 0:00:11]} 15. hxg4 {[%emt 0:00:08]} Rc8 {[%emt 0:09:32]} 16. Rc1 {[%emt 0:02:43]} Nd7 {[%emt 0:18:32]} 17. Bb2 {[%emt 0:02:07]} Rh7 {[%emt 0:04:51]} 18. Ke2 {[%emt 0:03:42]} Rxc1 {[%emt 0:04:33]} 19. Qxc1 {[%emt 0:00:45]} f6 {[%emt 0:05:38]} 20. Qc2 {[%emt 0:08:58]} Kf7 {[%emt 0:01:07]} 21. Nf3 {[%emt 0:04:06]} g5 {[%emt 0:00:02]} 22. Rc1 {[%emt 0:01:38]} Bd6 {[%emt 0:00:16]} 23. Rg1 {[%emt 0:06:25]} Qc7 {[%emt 0:00:10]} 24. Qb1 {[%emt 0:00:41]} Rh3 {[%emt 0:00:29]} 25. Rc1 {[%emt 0:01:23]} Qd8 {[%emt 0:00:06]} 26. Rh1 {[%emt 0:00:16]} Rxh1 {[%emt 0:00:08]} 27. Qxh1 {[%emt 0:00:07]} Qg8 {[%emt 0:00:07]} 28. Qh3 {[%emt 0:07:42]} Qg6 {[%emt 0:00:08]} 29. Qh8 $11 {[%emt 0:00:48]} Qg8 {[%emt 0:00:09]} 30. Qh5+ {[%emt 0:11:14]} Qg6 {[%emt 0:00:05]} 31. Qh8 {[%emt 0:00:46]} Qg8 {[%emt 0:00:03]} 32. Qh1 {[%emt 0:02:26]} Ke7 {[%emt 0:00:06]} 33. Qh5 {[%emt 0:01:46]} Qf7 {[%emt 0:00:18]} 34. Qh8 {[%emt 0:00:30]} Nf8 {[%emt 0:00:31]} 35. Nd4 {[%emt 0:00:25]} Qh7 {[%emt 0:00:13]} 36. Qxh7+ {[%emt 0:01:55]} Nxh7 {[%emt 0:00:01]} 37. Bc1 {[%emt 0:01:02]} Nf8 {[%emt 0:00:04]} 38. Bd2 {[%emt 0:00:04]} Nd7 {[%emt 0:00:09]} 39. f4 {[%emt 0:00:17]} gxf4 {[%emt 0:00:04]} 40. exf4 {[%emt 0:00:01]} Bc5 {[%emt 0:00:18]} 41. Nf3 {[%emt 0:00:20]} Kf7 {[%emt 0:00:21]} 42. d4 {[%emt 0:00:01]} Bd6 {[%emt 0:00:09]} 43. Kf2 {[%emt 0:00:20]} Nf8 {[%emt 0:00:09]} 44. f5 {[%emt 0:00:16]} exf5 {[%emt 0:00:06]} 45. gxf5 {[%emt 0:00:01]} Ke7 {[%emt 0:00:15]} 46. Nh4 {[%emt 0:00:08]} Kd7 {[%emt 0:00:13]} 47. Bh6 {[%emt 0:00:10]} Nh7 {[%emt 0:00:05]} 48. Kf3 {[%emt 0:00:08]} Bb4 {[%emt 0:00:17]} 49. Kg4 {[%emt 0:00:13]} Bc3 {[%emt 0:00:06]} 50. Nf3 {[%emt 0:00:01]} Ke7 {[%emt 0:00:09]} 51. Kh5 {[%emt 0:00:14]} Kf7 {[%emt 0:00:05]} 52. Kg4 {[%emt 0:00:25]} Nf8 {[%emt 0:00:04]} 53. Bxf8 {[%emt 0:00:11]} Kxf8 {[%emt 0:00:00]} 54. Kf4 {[%emt 0:00:02]} Ke7 {[%emt 0:00:09]} 55. Ke3 {[%emt 0:00:01]} Kd6 {[%emt 0:00:14]} 56. Nh2 {[%emt 0:00:25]} Ba5 {[%emt 0:00:13]} 57. Ng4 {[%emt 0:00:03]} Bd8 {[%emt 0:00:02]} 58. Kd3 {[%emt 0:00:14]} b5 {[%emt 0:00:03]} 59. Nh6 {[%emt 0:00:04]} Be7 {[%emt 0:00:08]} 60. Ng4 {[%emt 0:00:13]} a5 {[%emt 0:00:08]} 61. Kc3 {[%emt 0:00:14]} Kc6 {[%emt 0:00:16]} 62. a4 {[%emt 0:00:09]} bxa4 {[%emt 0:00:29]} 63. bxa4 {[%emt 0:00:02]} Kd6 {[%emt 0:00:11]} 64. Kd3 {[%emt 0:00:05]} Bd8 {[%emt 0:00:03]} 65. Ke3 {[%emt 0:00:07]} Ke7 {[%emt 0:00:10]} 66. Kd3 {[%emt 0:00:07]} Bb6 {[%emt 0:00:11]} 67. Nf2 {[%emt 0:00:15]} Kd6 {[%emt 0:00:11]} 68. Nh3 {[%emt 0:00:12]} Bc7 {[%emt 0:00:19]} 69. Nf4 {[%emt 0:00:06]} Kc6 {[%emt 0:00:10]} 70. Nh5 {[%emt 0:00:24]} Bd8 {[%emt 0:00:03]} 71. Kc3 {[%emt 0:00:15]} Kd6 {[%emt 0:00:08]} 72. Nf4 {[%emt 0:00:10]} Be7 {[%emt 0:00:10]} 73. Ne6 {[%emt 0:00:02]} Kc6 {[%emt 0:00:13]} 74. Kd3 {[%emt 0:00:12]} Bb4 {[%emt 0:00:16]} 75. Ke3 {[%emt 0:00:02]} Kd6 {[%emt 0:00:16]} 76. Nf8 {[%emt 0:00:20]} Ke7 {[%emt 0:00:08]} 77. Ng6+ {[%emt 0:00:02]} Kd6 {[%emt 0:00:13]} 78. Nf4 {[%emt 0:00:13]} Ba3 {[%emt 0:00:09]} 79. Kd3 {[%emt 0:00:18]} Bc1 {[%emt 0:00:07]} 80. Ne6 {[%emt 0:00:08]} Ba3 {[%emt 0:00:09]} 81. Nd8 {[%emt 0:00:10]} Kc7 {[%emt 0:00:14]} 82. Ne6+ {[%emt 0:00:03]} Kd6 {[%emt 0:00:05]} 83. Ng7 {[%emt 0:00:13]} Ke7 {[%emt 0:00:08]} 84. Nh5 {[%emt 0:00:15]} Bd6 {[%emt 0:00:04]} 85. Ke3 {[%emt 0:00:10]} Kf7 {[%emt 0:00:07]} 86. Kf3 {[%emt 0:00:18]} Bc7 {[%emt 0:00:11]} 87. Ke3 {[%emt 0:00:09]} Bd6 {[%emt 0:00:07]} 88. Kf3 {[%emt 0:00:03]} Bc7 {[%emt 0:00:02] Ke4 [%emt 00:00:18]} 1/2-1/2

[Event "Gibraltar Challengers A 2019"]
[Site "Caleta"]
[Date "2019.01.22"]
[Round "2"]
[White "Verneuil, Pascal"]
[Black "Rodriguez Perez, Angel Mariano"]
[Result "0-1"]
[ECO "B23"]
[WhiteElo "2114"]
[BlackElo "2204"]
[Annotator "NA"]
[PlyCount "64"]
[EventDate "2019.01.18"]
[EventType "swiss"]
[EventCountry "GGB"]
[SourceTitle "playchess.com"]
[Source "ChessBase"]
[SourceQuality "1"]
[TimeControl "6600+10"]

1. e4 {[%emt 0:00:00]} c5 {[%emt 0:00:00]} 2. Nc3 {[%emt 0:00:00]} g6 {[%emt 0:00:00]} 3. d4 {[%emt 0:00:03]} cxd4 {[%emt 0:00:05]} 4. Qxd4 {[%emt 0:00:06]} Nf6 {[%emt 0:00:07]} 5. Bb5 {[%emt 0:00:05]} a6 {[%emt 0:00:17] B23: Closed Sicilian: Lines without g3} 6. e5 {[%emt 0:00:04]} axb5 {[%emt 0:00:12]} 7. exf6 {[%emt 0:00:06]} Nc6 {[%emt 0:00:04]} 8. fxe7 {[%emt 0:02:27]} Qxe7+ {[%emt 0:00:12]} 9. Qe3 {[%emt 0:00:05]} Nd4 {[%emt 0:00:07]} 10. Kd1 {[%emt 0:00:17]} Ne6 {[%emt 0:17:14]} 11. Nxb5 $146 {[%emt 0:09:01]} ({Predecessor:} 11. Nge2 Bg7 12. Bd2 O-O 13. Kc1 {0-1 (28) Venkatesh,M (2499)-Koepke,C (2316) Innsbruck 2018}) 11... Bg7 {[%emt 0:02:31]} 12. Nf3 {[%emt 0:08:29]} O-O {[%emt 0:01:57]} 13. Re1 {[%emt 0:03:22]} Qb4 {[%emt 0:04:29]} 14. Qb3 {[%emt 0:29:38]} Qg4 {[%emt 0:02:43]} 15. Rg1 {[%emt 0:00:12]} d5 {[%emt 0:07:54]} 16. h3 {[%emt 0:04:33]} Qh5 {[%emt 0:00:25]} 17. Bd2 {[%emt 0:01:51]} d4 {[%emt 0:05:39]} 18. g4 {[%emt 0:01:59]} Qc5 {[%emt 0:10:10]} 19. a4 {[%emt 0:01:32]} Rd8 {[%emt 0:06:21]} 20. Ne1 {[%emt 0:02:05]} Qc6 {[%emt 0:02:14]} 21. Bb4 {[%emt 0:17:16]} Nf4 {[%emt 0:07:11]} 22. Bd2 {[%emt 0:15:29]} Be6 {[%emt 0:05:31]} 23. Qg3 {[%emt 0:01:18]} Qxb5 {[%emt 0:05:53]} 24. Bxf4 {[%emt 0:06:15]} Qxb2 {[%emt 0:01:42]} 25. Rc1 $19 {[%emt 0:02:07]} Bc4 {[%emt 0:07:35]} 26. Nd3 {[%emt 0:03:24]} Bxd3 {[%emt 0:00:33]} 27. Qxd3 {[%emt 0:00:11]} Rxa4 {[%emt 0:01:21]} 28. Rg3 {[%emt 0:01:08]} b5 {[%emt 0:03:58]} 29. Qb3 {[%emt 0:00:14]} d3 {[%emt 0:00:44]} 30. Bd2 {[%emt 0:01:08]} dxc2+ {[%emt 0:01:11]} 31. Rxc2 {[%emt 0:00:37]} Ra1+ {[%emt 0:00:04]} 32. Ke2 {[%emt 0:00:01]} Re8+ {[%emt 0:00:08] Kd1 [%emt 00:00:12]} 0-1

[Event "Gibraltar Challengers A 2019"]
[Site "Caleta"]
[Date "2019.01.22"]
[Round "2"]
[White "Crocker, Philip J"]
[Black "Boardman, Jeffrey"]
[Result "1/2-1/2"]
[ECO "A25"]
[WhiteElo "2109"]
[BlackElo "2005"]
[Annotator "NA"]
[PlyCount "166"]
[EventDate "2019.01.18"]
[EventType "swiss"]
[EventCountry "GGB"]
[SourceTitle "playchess.com"]
[Source "ChessBase"]
[SourceQuality "1"]
[TimeControl "6600+10"]

1. c4 {[%emt 0:00:00]} e5 {[%emt 0:02:40]} 2. g3 {[%emt 0:00:00]} Nf6 {[%emt 0:00:42]} 3. Bg2 {[%emt 0:00:13]} Nc6 {[%emt 0:00:06]} 4. Nc3 {[%emt 0:00:10]} Bb4 {[%emt 0:00:31]} 5. Nd5 {[%emt 0:00:32]} Nxd5 {[%emt 0:00:45]} 6. cxd5 {[%emt 0:00:26]} Nb8 {[%emt 0:00:56] A25: English Opening vs King's Indian with ...Nc6 but without early d3} (6... Ne7 7. e3 O-O 8. Ne2 c6 9. a3 Bd6 10. Nc3 Qa5 11. Ne4 Qc7 12. dxc6 dxc6 13. O-O a5 14. b3 Be6 {0-1 (27) Grischuk,A (2771)-Nepomniachtchi,I (2720) Moscow 2010}) 7. Nf3 {[%emt 0:01:26]} Qe7 {[%emt 0:00:21]} 8. O-O {[%emt 0:00:52]} O-O {[%emt 0:00:04]} 9. d4 {[%emt 0:02:14]} d6 $146 {[%emt 0:02:48]} ({Predecessor:} 9... e4 10. Ne5 Na6 11. Qc2 f5 12. f3 exf3 13. Bxf3 Qf6 14. h4 {1-0 (27) Videnova,I (2301)-Hawkins,J (2019) Caleta 2010}) 10. a3 {[%emt 0:01:30]} Ba5 {[%emt 0:00:07]} 11. b4 {[%emt 0:01:07]} Bb6 {[%emt 0:00:06]} 12. dxe5 {[%emt 0:02:00]} dxe5 {[%emt 0:00:07]} 13. Bb2 {[%emt 0:02:55]} Nd7 {[%emt 0:00:27]} 14. e4 {[%emt 0:01:38]} a5 {[%emt 0:00:07]} 15. Qc2 {[%emt 0:09:13]} Re8 {[%emt 0:01:18]} 16. Bc3 {[%emt 0:05:19]} axb4 {[%emt 0:03:00]} 17. axb4 {[%emt 0:05:25]} Rxa1 {[%emt 0:00:35]} 18. Rxa1 {[%emt 0:00:49]} c6 {[%emt 0:07:58]} 19. Rd1 {[%emt 0:15:44]} cxd5 {[%emt 0:11:27]} 20. exd5 {[%emt 0:00:56]} Qd6 {[%emt 0:05:05]} 21. Nd2 {[%emt 0:05:34]} Qg6 {[%emt 0:03:20]} 22. Qxg6 {[%emt 0:02:53]} hxg6 {[%emt 0:00:09]} 23. Nc4 {[%emt 0:02:21]} Bd4 {[%emt 0:08:24]} 24. Bxd4 {[%emt 0:01:47]} exd4 {[%emt 0:00:09]} 25. Nd6 {[%emt 0:01:04]} Rd8 {[%emt 0:00:23]} 26. Rxd4 {[%emt 0:02:34]} Ne5 {[%emt 0:03:12]} 27. f4 {[%emt 0:02:19]} Ng4 {[%emt 0:00:07]} 28. Nxc8 {[%emt 0:04:40]} Rxc8 {[%emt 0:00:05]} 29. Bf3 {[%emt 0:01:46]} Rc1+ {[%emt 0:05:14]} 30. Rd1 {[%emt 0:00:27]} Rxd1+ {[%emt 0:00:24]} 31. Bxd1 {[%emt 0:00:03]} Ne3 {[%emt 0:00:35]} 32. Bb3 {[%emt 0:00:49]} Nf5 {[%emt 0:02:36]} 33. Kf2 {[%emt 0:01:58]} Kf8 {[%emt 0:09:58]} 34. g4 {[%emt 0:01:27]} Nd6 {[%emt 0:00:05]} 35. Bc2 {[%emt 0:01:39]} Ke7 {[%emt 0:00:52]} 36. Ke3 {[%emt 0:02:36]} b6 {[%emt 0:00:36]} 37. Bd3 {[%emt 0:00:51]} f5 {[%emt 0:05:42]} 38. h3 {[%emt 0:01:57]} Kf6 {[%emt 0:00:29]} 39. Kd4 {[%emt 0:01:27]} Ke7 {[%emt 0:02:30]} 40. gxf5 {[%emt 0:04:16]} gxf5 {[%emt 0:00:08]} 41. Ke5 {[%emt 0:00:30]} g6 {[%emt 0:00:07]} 42. h4 {[%emt 0:00:51]} Nf7+ {[%emt 0:00:08]} 43. Kd4 {[%emt 0:00:17]} Nd6 {[%emt 0:00:29]} 44. Be2 {[%emt 0:02:01]} Kf6 {[%emt 0:00:10]} 45. h5 {[%emt 0:02:13]} gxh5 $16 {[%emt 0:00:29]} 46. Bxh5 {[%emt 0:00:04]} Nb5+ {[%emt 0:01:38]} 47. Kd3 {[%emt 0:01:07]} Nd6 {[%emt 0:00:14]} 48. Bf3 {[%emt 0:01:05]} Ke7 {[%emt 0:00:18]} 49. Be2 {[%emt 0:00:36]} Kf6 {[%emt 0:00:24]} 50. Kd4 {[%emt 0:00:14]} Ne4 {[%emt 0:02:15]} 51. Bd3 {[%emt 0:00:17]} Nd6 {[%emt 0:00:38]} 52. Ba6 {[%emt 0:01:35]} Ne4 {[%emt 0:01:05]} 53. Bb5 {[%emt 0:00:32]} Nd6 {[%emt 0:00:26]} 54. Bd3 {[%emt 0:00:05]} Nf7 {[%emt 0:02:34]} 55. d6 {[%emt 0:00:56]} Nxd6 {[%emt 0:00:26]} 56. Kd5 {[%emt 0:00:08]} Nc8 {[%emt 0:01:35]} 57. Kc6 {[%emt 0:01:09]} Ne7+ {[%emt 0:00:11]} 58. Kxb6 {[%emt 0:02:11]} Nd5+ {[%emt 0:00:10]} 59. Kc5 {[%emt 0:00:28]} Nxf4 {[%emt 0:00:11]} 60. Bc4 {[%emt 0:00:44]} Ne6+ {[%emt 0:02:52]} 61. Kd6 {[%emt 0:00:42]} Nd4 {[%emt 0:00:46]} 62. Kd5 {[%emt 0:01:00]} Ne6 {[%emt 0:00:06]} 63. Bf1 {[%emt 0:02:13]} f4 {[%emt 0:02:38]} 64. Bh3 {[%emt 0:00:39]} Ng5 {[%emt 0:05:03]} 65. Bf1 {[%emt 0:00:52]} Ne6 {[%emt 0:01:56]} 66. Ke4 {[%emt 0:00:07]} Ke7 {[%emt 0:00:59]} 67. Bc4 {[%emt 0:00:32]} f3 {[%emt 0:00:59]} 68. Kxf3 {[%emt 0:00:12]} Nc7 {[%emt 0:01:06]} 69. Ke4 {[%emt 0:00:10]} Kd6 {[%emt 0:00:13]} 70. Kd4 {[%emt 0:00:25]} Kc6 {[%emt 0:00:07]} 71. Ke5 {[%emt 0:00:25]} Nb5 {[%emt 0:00:24]} 72. Bb3 {[%emt 0:00:30]} Kb6 {[%emt 0:00:21]} 73. Kd5 {[%emt 0:00:10]} Nc3+ {[%emt 0:00:10]} 74. Kc4 {[%emt 0:00:13]} Nb5 {[%emt 0:00:08]} 75. Ba4 {[%emt 0:00:06]} Nd6+ {[%emt 0:00:16]} 76. Kd5 {[%emt 0:00:09]} Nb5 {[%emt 0:00:09]} 77. Kc4 {[%emt 0:00:33]} Nd6+ {[%emt 0:00:05]} 78. Kb3 {[%emt 0:00:06]} Nb5 {[%emt 0:00:06]} 79. Kc4 {[%emt 0:00:21]} Nd6+ {[%emt 0:01:05]} 80. Kd5 {[%emt 0:00:47]} Nb5 {[%emt 0:00:01]} 81. Kc4 {[%emt 0:00:02]} Nd6+ 82. Kb3 {[%emt 0:00:02]} Nb5 83. Kc4 {[%emt 0:00:01]} Nd6+ {[%emt 0:00:01]} 1/2-1/2